[Event "*** Qualifier 1: Titled Tuesday 3|2 Blitz"]
[Site "Chess.com"]
[Date "2017.04.04"]
[Round "2"]
[White "iturrizaga"]
[Black "GrigorGrigorov"]
[Result "1-0"]
[WhiteElo "2639"]
[BlackElo "2517"]
[TimeControl "180+2"]
[EndTime "13:25:07 PDT"]
[Termination "iturrizaga won by resignation"]

1. Nf3 {[%clk 0:03:02]} 1... g6 {[%clk 0:02:58.7]} 2. c4 {[%clk 0:03:03.9]} 2...
Bg7 {[%clk 0:02:58.3]} 3. Nc3 {[%clk 0:03:05.8]} 3... c5 {[%clk 0:02:58.9]} 4.
g3 {[%clk 0:03:04.6]} 4... Nc6 {[%clk 0:02:59.4]} 5. Bg2 {[%clk 0:03:06]} 5...
e6 {[%clk 0:03:00]} 6. O-O {[%clk 0:03:06.6]} 6... Nge7 {[%clk 0:03:00.8]} 7. d4
{[%clk 0:03:07.7]} 7... cxd4 {[%clk 0:03:00.7]} 8. Nb5 {[%clk 0:03:08.7]} 8...
d5 {[%clk 0:03:01.8]} 9. cxd5 {[%clk 0:03:08.2]} 9... exd5 {[%clk 0:02:58.3]}
10. Nbxd4 {[%clk 0:03:09]} 10... O-O {[%clk 0:02:54.1]} 11. Be3 {[%clk
0:03:07.3]} 11... Nf5 {[%clk 0:02:54.1]} 12. Nxf5 {[%clk 0:03:07.8]} 12... Bxf5
{[%clk 0:02:53.2]} 13. Nd4 {[%clk 0:03:07.2]} 13... Nxd4 {[%clk 0:02:38.8]} 14.
Bxd4 {[%clk 0:03:09.1]} 14... Be4 {[%clk 0:02:38.1]} 15. Bxg7 {[%clk 0:02:50]}
15... Kxg7 {[%clk 0:02:31.6]} 16. Qd4+ {[%clk 0:02:50.9]} 16... Qf6 {[%clk
0:02:31.8]} 17. Rfd1 {[%clk 0:02:52.4]} 17... Rfe8 {[%clk 0:02:14]} 18. Bh3
{[%clk 0:02:45]} 18... Bc2 {[%clk 0:02:01.8]} 19. Qxf6+ {[%clk 0:02:30.4]} 19...
Kxf6 {[%clk 0:02:03.2]} 20. Rd2 {[%clk 0:02:24.4]} 20... Ba4 {[%clk 0:02:03.5]}
21. Bg2 {[%clk 0:02:25.6]} 21... Bc6 {[%clk 0:01:40]} 22. Rad1 {[%clk
0:02:26.4]} 22... Rac8 {[%clk 0:01:23.7]} 23. e3 {[%clk 0:02:20.1]} 23... Re5
{[%clk 0:01:15.8]} 24. Bxd5 {[%clk 0:02:04]} 24... Bxd5 {[%clk 0:01:16.9]} 25.
Rxd5 {[%clk 0:02:05.8]} 25... Rxd5 {[%clk 0:01:18.3]} 26. Rxd5 {[%clk
0:02:07.3]} 26... Rc2 {[%clk 0:01:19.7]} 27. Rb5 {[%clk 0:02:07.8]} 27... b6
{[%clk 0:01:20.7]} 28. Kg2 {[%clk 0:01:54.4]} 28... h5 {[%clk 0:01:20.5]} 29. h4
{[%clk 0:01:49.5]} 29... Ke6 {[%clk 0:01:21.4]} 30. e4 {[%clk 0:01:45.4]} 30...
Kd6 {[%clk 0:01:19.6]} 31. Kf3 {[%clk 0:01:45]} 31... Kc6 {[%clk 0:01:19.9]} 32.
Rb3 {[%clk 0:01:45.8]} 32... Kc5 {[%clk 0:01:00.9]} 33. Ke3 {[%clk 0:01:44.4]}
33... Kc4 {[%clk 0:00:57.2]} 34. f3 {[%clk 0:01:36.1]} 34... b5 {[%clk
0:00:56.5]} 35. Ra3 {[%clk 0:01:31.4]} 35... Rxb2 {[%clk 0:00:50.6]} 36. Rxa7
{[%clk 0:01:32.3]} 36... b4 {[%clk 0:00:50.3]} 37. Kf4 {[%clk 0:01:22.2]} 37...
Rf2 {[%clk 0:00:48.9]} 38. Rc7+ {[%clk 0:01:09.1]} 38... Kd3 {[%clk 0:00:45.7]}
39. Rxf7 {[%clk 0:01:04.7]} 39... Rxa2 {[%clk 0:00:46.3]} 40. Rb7 {[%clk
0:01:05.5]} 40... Kc3 {[%clk 0:00:43.2]} 41. Kg5 {[%clk 0:01:04.5]} 41... Ra6
{[%clk 0:00:37.8]} 42. f4 {[%clk 0:01:00.9]} 42... b3 {[%clk 0:00:37]} 43. f5
{[%clk 0:00:58.3]} 43... gxf5 {[%clk 0:00:35.9]} 44. exf5 {[%clk 0:01:00.2]}
44... Ra5 {[%clk 0:00:35]} 45. Kg6 {[%clk 0:00:43]} 45... Ra4 {[%clk 0:00:22.2]}
46. Kxh5 {[%clk 0:00:30.1]} 46... b2 {[%clk 0:00:09.6]} 47. f6 {[%clk
0:00:20.3]} 47... Ra1 {[%clk 0:00:05.5]} 48. f7 {[%clk 0:00:18.6]} 1-0

[Event "*** Qualifier 1: Titled Tuesday 3|2 Blitz"]
[Site "Chess.com"]
[Date "2017.04.04"]
[Round "2"]
[White "ohusbands"]
[Black "Superfelix"]
[Result "1-0"]
[WhiteElo "2225"]
[BlackElo "2315"]
[TimeControl "180+2"]
[EndTime "13:25:16 PDT"]
[Termination "ohusbands won by resignation"]

1. e4 {[%clk 0:02:50.5]} 1... c6 {[%clk 0:03:00.2]} 2. Nc3 {[%clk 0:02:51]} 2...
g6 {[%clk 0:03:00.8]} 3. Nf3 {[%clk 0:02:52.9]} 3... d5 {[%clk 0:03:01.6]} 4. d4
{[%clk 0:02:53.6]} 4... dxe4 {[%clk 0:02:59.8]} 5. Nxe4 {[%clk 0:02:54.1]} 5...
Nf6 {[%clk 0:03:01.7]} 6. Bd3 {[%clk 0:02:50.6]} 6... Bg7 {[%clk 0:03:02.5]} 7.
h3 {[%clk 0:02:26.6]} 7... O-O {[%clk 0:03:03.7]} 8. O-O {[%clk 0:02:25]} 8...
a5 {[%clk 0:03:05.2]} 9. c3 {[%clk 0:02:25.2]} 9... Na6 {[%clk 0:03:06.8]} 10.
Re1 {[%clk 0:02:25.7]} 10... Nc7 {[%clk 0:03:08.1]} 11. Qe2 {[%clk 0:02:23.8]}
11... Nxe4 {[%clk 0:03:06.2]} 12. Bxe4 {[%clk 0:02:24.2]} 12... h6 {[%clk
0:02:58.9]} 13. Bf4 {[%clk 0:02:12.8]} 13... a4 {[%clk 0:02:45.7]} 14. Bd3
{[%clk 0:02:07.4]} 14... Nd5 {[%clk 0:02:36.5]} 15. Bg3 {[%clk 0:02:08.5]} 15...
b5 {[%clk 0:02:28.8]} 16. Rac1 {[%clk 0:02:03.4]} 16... Ra7 {[%clk 0:02:23.4]}
17. Ne5 {[%clk 0:02:03.8]} 17... Bd7 {[%clk 0:02:12.7]} 18. b3 {[%clk
0:01:57.1]} 18... axb3 {[%clk 0:02:07.2]} 19. axb3 {[%clk 0:01:57.3]} 19... Be8
{[%clk 0:02:08.3]} 20. c4 {[%clk 0:01:50.4]} 20... bxc4 {[%clk 0:02:06]} 21.
bxc4 {[%clk 0:01:52.3]} 21... Nb4 {[%clk 0:02:07]} 22. Red1 {[%clk 0:01:34.6]}
22... Ra2 {[%clk 0:01:32.2]} 23. Qe4 {[%clk 0:01:25.9]} 23... Nxd3 {[%clk
0:01:30.5]} 24. Rxd3 {[%clk 0:01:25.1]} 24... Qb6 {[%clk 0:01:22.7]} 25. c5
{[%clk 0:01:20.5]} 25... Qb2 {[%clk 0:01:21.5]} 26. Rdd1 {[%clk 0:01:17.2]}
26... Bxe5 {[%clk 0:01:13.6]} 27. Qxe5 {[%clk 0:01:15.5]} 27... Qe2 {[%clk
0:01:06.6]} 28. Re1 {[%clk 0:01:07.3]} 28... Qxe5 {[%clk 0:01:06.3]} 29. Rxe5
{[%clk 0:01:09.2]} 29... e6 {[%clk 0:01:06]} 30. Rb1 {[%clk 0:01:06.2]} 30...
Ra7 {[%clk 0:01:02]} 31. Re3 {[%clk 0:01:02.4]} 31... Bd7 {[%clk 0:01:01.6]} 32.
h4 {[%clk 0:01:02.3]} 32... h5 {[%clk 0:01:01.3]} 33. Bd6 {[%clk 0:01:01.6]}
33... Rfa8 {[%clk 0:01:00.9]} 34. Kh2 {[%clk 0:01:03.1]} 34... Ra2 {[%clk
0:01:00.4]} 35. Kg3 {[%clk 0:01:02.5]} 35... Bc8 {[%clk 0:01:00.5]} 36. Rb6
{[%clk 0:00:58.6]} 36... Bd7 {[%clk 0:00:47]} 37. Rb7 {[%clk 0:00:57.8]} 37...
R2a7 {[%clk 0:00:47.2]} 38. Reb3 {[%clk 0:00:54.9]} 38... Kg7 {[%clk 0:00:44.8]}
39. Be5+ {[%clk 0:00:47.4]} 39... f6 {[%clk 0:00:45.5]} 40. Bd6 {[%clk
0:00:48.6]} 40... Kf7 {[%clk 0:00:43.4]} 41. Kf4 {[%clk 0:00:43.4]} 41... Ke8
{[%clk 0:00:41.5]} 42. f3 {[%clk 0:00:40]} 42... Rxb7 {[%clk 0:00:31.8]} 43.
Rxb7 {[%clk 0:00:40.1]} 43... Ra2 {[%clk 0:00:31.3]} 44. g4 {[%clk 0:00:38.4]}
44... hxg4 {[%clk 0:00:31.1]} 45. fxg4 {[%clk 0:00:40.3]} 45... Rf2+ {[%clk
0:00:31.5]} 46. Ke3 {[%clk 0:00:35.8]} 46... Rg2 {[%clk 0:00:31.1]} 47. Kf3
{[%clk 0:00:36.4]} 47... Rd2 {[%clk 0:00:30.6]} 48. Rb8+ {[%clk 0:00:29.8]}
48... Kf7 {[%clk 0:00:31.5]} 49. Rf8+ {[%clk 0:00:26.8]} 49... Kg7 {[%clk
0:00:32.2]} 50. Rd8 {[%clk 0:00:28.4]} 50... Rxd4 {[%clk 0:00:32.4]} 51. Rxd7+
{[%clk 0:00:29.6]} 51... Kg8 {[%clk 0:00:33.4]} 52. Rc7 {[%clk 0:00:28.6]} 52...
e5 {[%clk 0:00:33.8]} 53. Rxc6 {[%clk 0:00:28.9]} 53... Rd3+ {[%clk 0:00:32.6]}
54. Ke2 {[%clk 0:00:21.8]} 54... Rg3 {[%clk 0:00:32.7]} 55. Rc8+ {[%clk
0:00:20.9]} 55... Kf7 {[%clk 0:00:33.8]} 56. c6 {[%clk 0:00:22.8]} 56... Rxg4
{[%clk 0:00:34.8]} 57. c7 {[%clk 0:00:23.7]} 57... Rc4 {[%clk 0:00:33.2]} 58.
Rf8+ {[%clk 0:00:23.3]} 58... Ke6 {[%clk 0:00:31.9]} 59. c8=Q+ {[%clk
0:00:25.2]} 59... Rxc8 {[%clk 0:00:32]} 60. Rxc8 {[%clk 0:00:27.1]} 60... Kxd6
{[%clk 0:00:33.9]} 61. Rg8 {[%clk 0:00:27.3]} 61... Ke6 {[%clk 0:00:35]} 62.
Rxg6 {[%clk 0:00:27.7]} 62... Kf5 {[%clk 0:00:36.9]} 63. Rg1 {[%clk 0:00:28]}
1-0

[Event "*** Qualifier 1: Titled Tuesday 3|2 Blitz"]
[Site "Chess.com"]
[Date "2017.04.04"]
[Round "2"]
[White "FairChess_on_YouTube"]
[Black "donotreadit"]
[Result "1/2-1/2"]
[WhiteElo "2731"]
[BlackElo "2499"]
[TimeControl "180+2"]
[EndTime "13:25:18 PDT"]
[Termination "Game drawn - insufficient material"]

1. d4 {[%clk 0:03:02]} 1... d6 {[%clk 0:03:00.3]} 2. e4 {[%clk 0:03:01.7]} 2...
Nf6 {[%clk 0:02:58.7]} 3. Nc3 {[%clk 0:03:01.8]} 3... g6 {[%clk 0:03:00.3]} 4.
f4 {[%clk 0:02:55.1]} 4... Bg7 {[%clk 0:03:01.5]} 5. Bd3 {[%clk 0:02:55.8]} 5...
O-O {[%clk 0:03:02.5]} 6. Nf3 {[%clk 0:02:55.4]} 6... Nc6 {[%clk 0:03:03.9]} 7.
O-O {[%clk 0:02:46.2]} 7... e5 {[%clk 0:03:04.6]} 8. fxe5 {[%clk 0:02:43.3]}
8... dxe5 {[%clk 0:03:06.1]} 9. d5 {[%clk 0:02:44.9]} 9... Ne7 {[%clk
0:03:07.6]} 10. Bg5 {[%clk 0:02:36.7]} 10... c6 {[%clk 0:03:08.8]} 11. Nxe5
{[%clk 0:02:30.6]} 11... cxd5 {[%clk 0:03:08.9]} 12. Kh1 {[%clk 0:02:26.5]}
12... dxe4 {[%clk 0:02:54.6]} 13. Bxe4 {[%clk 0:01:58.4]} 13... Qxd1 {[%clk
0:02:40.9]} 14. Raxd1 {[%clk 0:01:57.8]} 14... Nxe4 {[%clk 0:02:15.4]} 15. Nxe4
{[%clk 0:01:59.7]} 15... Bxe5 {[%clk 0:02:14.2]} 16. Bxe7 {[%clk 0:02:00.3]}
16... Re8 {[%clk 0:02:15.7]} 17. Nf6+ {[%clk 0:01:42]} 17... Bxf6 {[%clk
0:02:15]} 18. Bxf6 {[%clk 0:01:43.9]} 18... Bf5 {[%clk 0:01:59]} 19. Rf2 {[%clk
0:01:42.3]} 19... Be4 {[%clk 0:01:55.5]} 20. h3 {[%clk 0:01:36.7]} 20... Bc6
{[%clk 0:01:54.7]} 21. Kh2 {[%clk 0:01:31.3]} 21... h6 {[%clk 0:01:51.5]} 22.
Rd4 {[%clk 0:01:21.5]} 22... Re4 {[%clk 0:01:44.7]} 23. Rxe4 {[%clk 0:01:19.4]}
23... Bxe4 {[%clk 0:01:46.6]} 24. Rd2 {[%clk 0:01:15.8]} 24... g5 {[%clk
0:01:36.6]} 25. c4 {[%clk 0:01:09]} 25... Re8 {[%clk 0:01:33.6]} 26. b4 {[%clk
0:01:08.1]} 26... a6 {[%clk 0:01:28.7]} 27. a4 {[%clk 0:01:08.3]} 27... Kh7
{[%clk 0:01:23.5]} 28. b5 {[%clk 0:01:03]} 28... Kg6 {[%clk 0:01:15.8]} 29. Bb2
{[%clk 0:01:02.2]} 29... Re6 {[%clk 0:01:14]} 30. c5 {[%clk 0:00:58.8]} 30...
axb5 {[%clk 0:01:14.3]} 31. axb5 {[%clk 0:01:00.7]} 31... h5 {[%clk 0:01:14.5]}
32. Bd4 {[%clk 0:00:53.9]} 32... h4 {[%clk 0:01:10.4]} 33. Rb2 {[%clk
0:00:52.5]} 33... f5 {[%clk 0:00:57.2]} 34. Bf2 {[%clk 0:00:51.5]} 34... Re7
{[%clk 0:00:42.8]} 35. c6 {[%clk 0:00:40.9]} 35... bxc6 {[%clk 0:00:43.2]} 36.
b6 {[%clk 0:00:42.2]} 36... c5 {[%clk 0:00:42.6]} 37. Bxc5 {[%clk 0:00:40.8]}
37... Rd7 {[%clk 0:00:43.8]} 38. Re2 {[%clk 0:00:30.6]} 38... Kf6 {[%clk
0:00:35.4]} 39. Be3 {[%clk 0:00:26.6]} 39... g4 {[%clk 0:00:28.8]} 40. hxg4
{[%clk 0:00:23.5]} 40... fxg4 {[%clk 0:00:30.7]} 41. Bg5+ {[%clk 0:00:15]} 41...
Kxg5 {[%clk 0:00:30.3]} 42. Rxe4 {[%clk 0:00:16.1]} 42... Rb7 {[%clk 0:00:31.9]}
43. Rb4 {[%clk 0:00:16.5]} 43... Kf5 {[%clk 0:00:32.7]} 44. Kg1 {[%clk 0:00:16]}
44... Kg5 {[%clk 0:00:25.2]} 45. Kf2 {[%clk 0:00:16.9]} 45... Rf7+ {[%clk
0:00:25.7]} 46. Ke3 {[%clk 0:00:17.1]} 46... Rb7 {[%clk 0:00:27.1]} 47. Rb5+
{[%clk 0:00:18]} 47... Kg6 {[%clk 0:00:24.7]} 48. Kf4 {[%clk 0:00:18.4]} 48...
h3 {[%clk 0:00:26.1]} 49. gxh3 {[%clk 0:00:08]} 49... gxh3 {[%clk 0:00:27.3]}
50. Kg3 {[%clk 0:00:06.3]} 50... Kf6 {[%clk 0:00:28.3]} 51. Rh5 {[%clk
0:00:05.5]} 51... Ke6 {[%clk 0:00:26.1]} 52. Rxh3 {[%clk 0:00:05.3]} 52... Kd6
{[%clk 0:00:26.7]} 53. Kf4 {[%clk 0:00:06.1]} 53... Rxb6 {[%clk 0:00:26.8]} 54.
Rh6+ {[%clk 0:00:07]} 54... Kc5 {[%clk 0:00:26.8]} 55. Rxb6 {[%clk 0:00:08.9]}
55... Kxb6 {[%clk 0:00:28.7]} 1/2-1/2

[Event "*** Qualifier 1: Titled Tuesday 3|2 Blitz"]
[Site "Chess.com"]
[Date "2017.04.04"]
[Round "2"]
[White "dolynachess"]
[Black "stefanodinn"]
[Result "1-0"]
[WhiteElo "2308"]
[BlackElo "2191"]
[TimeControl "180+2"]
[EndTime "13:25:27 PDT"]
[Termination "dolynachess won by resignation"]

1. c4 {[%clk 0:03:02]} 1... c6 {[%clk 0:02:50.6]} 2. d4 {[%clk 0:02:57.3]} 2...
d5 {[%clk 0:02:51.1]} 3. Nc3 {[%clk 0:02:58.5]} 3... Nf6 {[%clk 0:02:51.3]} 4.
cxd5 {[%clk 0:02:59.6]} 4... cxd5 {[%clk 0:02:50.5]} 5. Nf3 {[%clk 0:03:00.1]}
5... Nc6 {[%clk 0:02:50.4]} 6. Bf4 {[%clk 0:03:01.2]} 6... a6 {[%clk 0:02:50.3]}
7. e3 {[%clk 0:03:02]} 7... Bg4 {[%clk 0:02:50.4]} 8. Be2 {[%clk 0:02:59.7]}
8... e6 {[%clk 0:02:51.2]} 9. O-O {[%clk 0:03:00.6]} 9... Bd6 {[%clk 0:02:50.4]}
10. Bxd6 {[%clk 0:02:58.9]} 10... Qxd6 {[%clk 0:02:50.5]} 11. Rc1 {[%clk
0:02:47.1]} 11... O-O {[%clk 0:02:50.7]} 12. Na4 {[%clk 0:02:41]} 12... Nd7
{[%clk 0:02:44.4]} 13. Nd2 {[%clk 0:02:33.4]} 13... Bxe2 {[%clk 0:02:44.4]} 14.
Qxe2 {[%clk 0:02:35.3]} 14... Rfc8 {[%clk 0:02:29.4]} 15. Nb3 {[%clk 0:02:33.1]}
15... b5 {[%clk 0:02:17.5]} 16. Nac5 {[%clk 0:02:33]} 16... Nb6 {[%clk 0:02:18]}
17. Nd2 {[%clk 0:02:20.9]} 17... e5 {[%clk 0:01:51.1]} 18. dxe5 {[%clk
0:02:07.2]} 18... Nxe5 {[%clk 0:01:42.4]} 19. Nd3 {[%clk 0:02:04.7]} 19... Nbc4
{[%clk 0:01:35.7]} 20. b3 {[%clk 0:01:58.5]} 20... Nxd3 {[%clk 0:00:52.3]} 21.
Qxd3 {[%clk 0:01:55.6]} 21... Qa3 {[%clk 0:00:34.3]} 22. Rc2 {[%clk 0:01:28.9]}
22... Nxd2 {[%clk 0:00:12.8]} 23. Rxd2 {[%clk 0:01:22.7]} 23... Rd8 {[%clk
0:00:07.2]} 24. Rfd1 {[%clk 0:01:17]} 24... g6 {[%clk 0:00:07.8]} 25. h4 {[%clk
0:01:13]} 25... h5 {[%clk 0:00:07.7]} 26. Qe2 {[%clk 0:01:09.2]} 26... Rac8
{[%clk 0:00:08.3]} 27. Rxd5 {[%clk 0:01:03.4]} 27... Rxd5 {[%clk 0:00:09.2]} 28.
Rxd5 {[%clk 0:01:04.5]} 28... Qc1+ {[%clk 0:00:08.8]} 29. Rd1 {[%clk 0:01:02.9]}
29... Rc2 {[%clk 0:00:06.2]} 30. Rxc1 {[%clk 0:00:43.4]} 30... Rxe2 {[%clk
0:00:06.5]} 31. a4 {[%clk 0:00:44.9]} 31... bxa4 {[%clk 0:00:02.7]} 32. bxa4
{[%clk 0:00:45.7]} 32... Ra2 {[%clk 0:00:03.7]} 33. Rc4 {[%clk 0:00:46.4]} 33...
Kf8 {[%clk 0:00:04.4]} 34. f3 {[%clk 0:00:46.3]} 34... a5 {[%clk 0:00:04.8]} 35.
Kh2 {[%clk 0:00:47]} 35... Ke7 {[%clk 0:00:05.8]} 36. e4 {[%clk 0:00:46.7]}
36... Kd6 {[%clk 0:00:06.3]} 37. Kg3 {[%clk 0:00:41.2]} 37... Ke6 {[%clk
0:00:07.3]} 38. Rd4 {[%clk 0:00:37.5]} 38... Ke7 {[%clk 0:00:07.3]} 39. Kf4
{[%clk 0:00:31.5]} 39... Rxg2 {[%clk 0:00:06.7]} 40. Rd5 {[%clk 0:00:31.3]}
40... Ra2 {[%clk 0:00:06.3]} 41. Rxa5 {[%clk 0:00:31]} 41... Ke6 {[%clk
0:00:07.4]} 42. Ra6+ {[%clk 0:00:31.5]} 42... Ke7 {[%clk 0:00:08.5]} 43. Kg5
{[%clk 0:00:32.2]} 43... Ra3 {[%clk 0:00:09.2]} 44. Ra7+ {[%clk 0:00:31.4]}
44... Ke6 {[%clk 0:00:09.7]} 45. Kf4 {[%clk 0:00:27.9]} 45... f6 {[%clk
0:00:10.6]} 46. a5 {[%clk 0:00:26.2]} 46... Ra4 {[%clk 0:00:03.8]} 47. a6 {[%clk
0:00:19.8]} 47... Ra3 {[%clk 0:00:04.8]} 48. Ra8 {[%clk 0:00:20.2]} 48... g5+
{[%clk 0:00:03.6]} 49. hxg5 {[%clk 0:00:19.6]} 49... fxg5+ {[%clk 0:00:04.7]}
50. Kxg5 {[%clk 0:00:20.6]} 50... Rxf3 {[%clk 0:00:06.2]} 51. a7 {[%clk
0:00:20.7]} 1-0

[Event "*** Qualifier 1: Titled Tuesday 3|2 Blitz"]
[Site "Chess.com"]
[Date "2017.04.04"]
[Round "2"]
[White "ZivkovicN"]
[Black "Titus369"]
[Result "0-1"]
[WhiteElo "2312"]
[BlackElo "2230"]
[TimeControl "180+2"]
[EndTime "13:25:35 PDT"]
[Termination "Titus369 won by resignation"]

1. e4 {[%clk 0:02:32.4]} 1... c5 {[%clk 0:03:00.5]} 2. Nf3 {[%clk 0:02:27.5]}
2... d6 {[%clk 0:03:01.4]} 3. Bb5+ {[%clk 0:02:27.2]} 3... Nd7 {[%clk
0:03:01.9]} 4. c3 {[%clk 0:02:28.1]} 4... Nf6 {[%clk 0:03:01.7]} 5. Qe2 {[%clk
0:02:28.6]} 5... a6 {[%clk 0:03:01.7]} 6. Ba4 {[%clk 0:02:29.3]} 6... b5 {[%clk
0:03:01.9]} 7. Bc2 {[%clk 0:02:30.9]} 7... Bb7 {[%clk 0:03:03]} 8. d4 {[%clk
0:02:26.8]} 8... e6 {[%clk 0:03:03.7]} 9. O-O {[%clk 0:02:27.6]} 9... Be7 {[%clk
0:03:04.6]} 10. Re1 {[%clk 0:02:28.6]} 10... O-O {[%clk 0:03:05]} 11. Nbd2
{[%clk 0:02:30.1]} 11... cxd4 {[%clk 0:03:05.2]} 12. cxd4 {[%clk 0:02:31.3]}
12... Rc8 {[%clk 0:03:06.8]} 13. Bd3 {[%clk 0:02:32.9]} 13... Qc7 {[%clk
0:03:04.8]} 14. Nf1 {[%clk 0:02:34.3]} 14... Qb8 {[%clk 0:03:05.9]} 15. Ng3
{[%clk 0:02:35.7]} 15... Nb6 {[%clk 0:03:04.6]} 16. Bg5 {[%clk 0:02:34.4]} 16...
Rfe8 {[%clk 0:03:03.7]} 17. e5 {[%clk 0:02:15.7]} 17... dxe5 {[%clk 0:02:57.6]}
18. dxe5 {[%clk 0:02:13.5]} 18... Nfd5 {[%clk 0:02:56.2]} 19. Bxe7 {[%clk
0:02:04.7]} 19... Nxe7 {[%clk 0:02:02.8]} 20. Bxh7+ {[%clk 0:02:04.8]} 20...
Kxh7 {[%clk 0:01:57.3]} 21. Ng5+ {[%clk 0:02:05.5]} 21... Kg8 {[%clk 0:01:57.2]}
22. Qh5 {[%clk 0:02:06.4]} 22... Ng6 {[%clk 0:01:57.4]} 23. Qh7+ {[%clk
0:01:59.3]} 23... Kf8 {[%clk 0:01:57.6]} 24. Nh5 {[%clk 0:02:00.7]} 24... Ke7
{[%clk 0:01:11.5]} 25. Qxg7 {[%clk 0:01:46.1]} 25... Rf8 {[%clk 0:01:02.6]} 26.
Nxe6 {[%clk 0:01:10.8]} 26... Kxe6 {[%clk 0:00:48.2]} 27. Qf6+ {[%clk
0:01:05.6]} 27... Kd7 {[%clk 0:00:47.8]} 28. Qxb6 {[%clk 0:00:40.7]} 28... Rc6
{[%clk 0:00:43.4]} 29. Qd4+ {[%clk 0:00:29.8]} 29... Kc8 {[%clk 0:00:42.8]} 30.
Rad1 {[%clk 0:00:27.6]} 30... Qc7 {[%clk 0:00:40.6]} 31. Nf6 {[%clk 0:00:26.4]}
31... Rc4 {[%clk 0:00:28.8]} 32. Qd7+ {[%clk 0:00:22.2]} 32... Qxd7 {[%clk
0:00:28.6]} 33. Rxd7 {[%clk 0:00:24.1]} 33... Nxe5 {[%clk 0:00:23]} 34. Re7
{[%clk 0:00:20.6]} 34... Ng6 {[%clk 0:00:21.3]} 35. R7e2 {[%clk 0:00:18.5]}
35... Nf4 {[%clk 0:00:21.6]} 36. Re8+ {[%clk 0:00:18.3]} 36... Rxe8 {[%clk
0:00:22.5]} 37. Rxe8+ {[%clk 0:00:20.2]} 37... Kc7 {[%clk 0:00:23.2]} 38. f3
{[%clk 0:00:21.7]} 38... Rc1+ {[%clk 0:00:21.6]} 39. Kf2 {[%clk 0:00:23.4]}
39... Rc2+ {[%clk 0:00:22.8]} 40. Kg3 {[%clk 0:00:24.8]} 40... Ng6 {[%clk
0:00:21.9]} 41. h4 {[%clk 0:00:23.1]} 41... Bc6 {[%clk 0:00:22.5]} 42. Re3
{[%clk 0:00:23.1]} 42... Rc5 {[%clk 0:00:14.3]} 43. h5 {[%clk 0:00:23.9]} 43...
Nf8 {[%clk 0:00:13.6]} 44. Kf4 {[%clk 0:00:24.3]} 44... Ne6+ {[%clk 0:00:14]}
45. Kg3 {[%clk 0:00:24]} 45... Rg5+ {[%clk 0:00:14.3]} 46. Kf2 {[%clk
0:00:24.9]} 46... Rf5 {[%clk 0:00:14.5]} 47. Ng8 {[%clk 0:00:19.6]} 47... Rxh5
{[%clk 0:00:14.5]} 48. Ne7 {[%clk 0:00:21.5]} 48... Bd7 {[%clk 0:00:14.1]} 49.
Rb3 {[%clk 0:00:22.7]} 49... Kd6 {[%clk 0:00:14.8]} 50. Ng8 {[%clk 0:00:23.3]}
50... Rg5 {[%clk 0:00:15.4]} 51. Rd3+ {[%clk 0:00:24.5]} 51... Kc7 {[%clk
0:00:15.6]} 52. Nf6 {[%clk 0:00:25.4]} 52... Bc6 {[%clk 0:00:17.2]} 53. g4
{[%clk 0:00:26.3]} 53... Rc5 {[%clk 0:00:16.7]} 54. Rd2 {[%clk 0:00:26.7]} 54...
Ng5 {[%clk 0:00:16.3]} 55. f4 {[%clk 0:00:26.5]} 55... Ne6 {[%clk 0:00:17.2]}
56. Ke3 {[%clk 0:00:26.8]} 56... Rc4 {[%clk 0:00:17.5]} 57. Nh5 {[%clk
0:00:26.7]} 57... Re4+ {[%clk 0:00:17.5]} 58. Kf2 {[%clk 0:00:28.1]} 58... Nxf4
{[%clk 0:00:18.3]} 59. Nf6 {[%clk 0:00:29.7]} 59... Re6 {[%clk 0:00:18]} 60. Ng8
{[%clk 0:00:29.5]} 60... Nd5 {[%clk 0:00:17.5]} 61. Rc2 {[%clk 0:00:30]} 61...
Kd7 {[%clk 0:00:15.2]} 62. Kg3 {[%clk 0:00:31.4]} 62... Rg6 {[%clk 0:00:16]} 63.
Rd2 {[%clk 0:00:32.3]} 63... Rxg8 {[%clk 0:00:16.5]} 0-1